[Event "Titled Tuesday Blitz December 7 2021"]
[White "Savchenko, Boris"]
[Black "Svane, Rasmus"]
[WhiteFideId "4147332"]
[BlackFideId "4657101"]
[WhiteElo "2499"]
[BlackElo "2643"]
[Result "0-1"]
[Round "10"]
[TimeControl "180+1"]
[Date "2021.12.07"]
[WhiteClock "0:00:01"]
[BlackClock "0:00:09"]

1. c3 {[%clk 0:03:00]}  Nf6 {[%clk 0:02:57]} 2. d4 {[%clk 0:02:59]}  d5 {[%clk 0:02:57]} 3. Bf4 {[%clk 0:02:58]}  e6 {[%clk 0:02:56]} 4. e3 {[%clk 0:02:57]}  Bd6 {[%clk 0:02:57]} 5. Nf3 {[%clk 0:02:56]}  O-O {[%clk 0:02:56]} 6. Nbd2 {[%clk 0:02:50]}  b6 {[%clk 0:02:56]} 7. Bd3 {[%clk 0:02:49]}  Ba6 {[%clk 0:02:55]} 8. Bc2 {[%clk 0:02:43]}  Bxf4 {[%clk 0:02:50]} 9. exf4 {[%clk 0:02:43]}  c5 {[%clk 0:02:51]} 10. Ne5 {[%clk 0:02:43]}  cxd4 {[%clk 0:02:31]} 11. cxd4 {[%clk 0:02:44]}  Qd6 {[%clk 0:02:29]} 12. a3 {[%clk 0:02:42]}  Nfd7 {[%clk 0:02:29]} 13. h4 {[%clk 0:02:38]}  h6 {[%clk 0:02:02]} 14. Rc1 {[%clk 0:02:29]}  f6 {[%clk 0:01:58]} 15. Ng6 {[%clk 0:02:23]}  Re8 {[%clk 0:01:58]} 16. Qg4 {[%clk 0:02:03]}  e5 {[%clk 0:01:52]} 17. fxe5 {[%clk 0:01:56]}  fxe5 {[%clk 0:01:53]} 18. Kd1 {[%clk 0:01:29]}  Nc6 {[%clk 0:01:53]} 19. Ba4 {[%clk 0:01:22]}  Nxd4 {[%clk 0:01:49]} 20. Qxd7 {[%clk 0:01:11]}  Qxg6 {[%clk 0:01:39]} 21. Qxd5+ {[%clk 0:01:12]}  Kh8 {[%clk 0:01:39]} 22. Bxe8 {[%clk 0:01:03]}  Rxe8 {[%clk 0:01:30]} 23. Qe4 {[%clk 0:00:58]}  Qf7 {[%clk 0:01:30]} 24. Ke1 {[%clk 0:00:50]}  Ne2 {[%clk 0:01:05]} 25. Rc4 {[%clk 0:00:25]}  Nf4 {[%clk 0:01:00]} 26. g3 {[%clk 0:00:20]}  Bb7 {[%clk 0:00:56]} 27. Rc6 {[%clk 0:00:19]}  Qd7 {[%clk 0:00:52]} 28. Rd6 {[%clk 0:00:17]}  Qe7 {[%clk 0:00:28]} 29. Qa4 {[%clk 0:00:09]}  Bxh1 {[%clk 0:00:21]} 30. Rd7 {[%clk 0:00:07]}  Qe6 {[%clk 0:00:19]} 31. Qxa7 {[%clk 0:00:06]}  Nh5 {[%clk 0:00:12]} 32. Rd3 {[%clk 0:00:02]}  Nf6 {[%clk 0:00:11]} 33. Re3 {[%clk 0:00:03]}  Ng4 {[%clk 0:00:10]} 34. Re2 {[%clk 0:00:03]}  Qc6 {[%clk 0:00:09]} 35. f3 {[%clk 0:00:01]}  Qc1# {[%clk 0:00:09]} 0-1


[Site "https://www.chess.com"]

[Event "Titled Tuesday Blitz December 7 2021"]
[White "Shahade, Gregory"]
[Black "Eynullayev, Atilla"]
[WhiteFideId "2009064"]
[BlackFideId "13413570"]
[WhiteElo "2661"]
[BlackElo "1982"]
[Result "1-0"]
[Round "10"]
[TimeControl "180+1"]
[Date "2021.12.07"]
[WhiteClock "0:00:20"]
[BlackClock "0:00:02"]

1. e4 {[%clk 0:03:00]}  c5 {[%clk 0:02:58]} 2. Nf3 {[%clk 0:03:01]}  e6 {[%clk 0:02:59]} 3. d4 {[%clk 0:03:01]}  cxd4 {[%clk 0:02:59]} 4. Nxd4 {[%clk 0:03:02]}  Nc6 {[%clk 0:03:00]} 5. Nc3 {[%clk 0:03:02]}  a6 {[%clk 0:03:00]} 6. Be3 {[%clk 0:03:00]}  Nf6 {[%clk 0:03:00]} 7. Qf3 {[%clk 0:02:57]}  Bb4 {[%clk 0:02:58]} 8. Nxc6 {[%clk 0:02:47]}  bxc6 {[%clk 0:02:56]} 9. Qg3 {[%clk 0:02:37]}  O-O {[%clk 0:02:29]} 10. Bd4 {[%clk 0:02:31]}  c5 {[%clk 0:02:21]} 11. Be5 {[%clk 0:02:30]}  d6 {[%clk 0:02:19]} 12. O-O-O {[%clk 0:02:21]}  Nh5 {[%clk 0:01:55]} 13. Qe3 {[%clk 0:01:47]}  Bxc3 {[%clk 0:00:45]} 14. Bxc3 {[%clk 0:01:48]}  Qe7 {[%clk 0:00:29]} 15. Qf3 {[%clk 0:01:39]}  Nf6 {[%clk 0:00:07]} 16. Bxf6 {[%clk 0:01:11]}  Qxf6 {[%clk 0:00:06]} 17. Qxf6 {[%clk 0:01:11]}  gxf6 {[%clk 0:00:07]} 18. Rxd6 {[%clk 0:01:11]}  Bb7 {[%clk 0:00:08]} 19. f3 {[%clk 0:01:06]}  Rfd8 {[%clk 0:00:09]} 20. Rxd8+ {[%clk 0:01:06]}  Rxd8 {[%clk 0:00:09]} 21. Bd3 {[%clk 0:00:58]}  a5 {[%clk 0:00:10]} 22. b3 {[%clk 0:00:55]}  Kf8 {[%clk 0:00:10]} 23. Kb2 {[%clk 0:00:55]}  Bc6 {[%clk 0:00:10]} 24. Kc3 {[%clk 0:00:56]}  Ke7 {[%clk 0:00:11]} 25. h4 {[%clk 0:00:54]}  Rb8 {[%clk 0:00:10]} 26. Bc4 {[%clk 0:00:48]}  h6 {[%clk 0:00:10]} 27. Rd1 {[%clk 0:00:46]}  Rb7 {[%clk 0:00:10]} 28. Rd3 {[%clk 0:00:36]}  Rb8 {[%clk 0:00:09]} 29. Kd2 {[%clk 0:00:36]}  Rb7 {[%clk 0:00:09]} 30. Ke3 {[%clk 0:00:36]}  Rb8 {[%clk 0:00:09]} 31. Kf4 {[%clk 0:00:36]}  a4 {[%clk 0:00:09]} 32. Rd2 {[%clk 0:00:36]}  a3 {[%clk 0:00:08]} 33. Kg4 {[%clk 0:00:36]}  Rb7 {[%clk 0:00:08]} 34. Kh5 {[%clk 0:00:36]}  Rb8 {[%clk 0:00:09]} 35. Bf1 {[%clk 0:00:30]}  Bd7 {[%clk 0:00:08]} 36. Bc4 {[%clk 0:00:26]}  Bc6 {[%clk 0:00:08]} 37. Rd3 {[%clk 0:00:26]}  Bd7 {[%clk 0:00:04]} 38. Rc3 {[%clk 0:00:26]}  Rc8 {[%clk 0:00:04]} 39. Ba6 {[%clk 0:00:25]}  Rc7 {[%clk 0:00:04]} 40. Kxh6 {[%clk 0:00:24]}  Ra7 {[%clk 0:00:02]} 41. Bc4 {[%clk 0:00:23]}  Ra8 {[%clk 0:00:02]} 42. Kg7 {[%clk 0:00:21]}  e5 {[%clk 0:00:02]} 43. h5 {[%clk 0:00:21]}  Be6 {[%clk 0:00:02]} 44. Bxe6 {[%clk 0:00:20]} 1-0


[Site "https://www.chess.com"]

[Event "Titled Tuesday Blitz December 7 2021"]
[White "Sinitsina, Anastassia"]
[Black "Papasimakopoulos, Alexandros"]
[WhiteFideId "4504640"]
[BlackFideId "4244125"]
[WhiteElo "2161"]
[BlackElo "2394"]
[Result "1-0"]
[Round "10"]
[TimeControl "180+1"]
[Date "2021.12.07"]
[WhiteClock "0:00:08"]
[BlackClock "0:00:12"]

1. Nf3 {[%clk 0:03:00]}  d5 {[%clk 0:02:57]} 2. g3 {[%clk 0:03:00]}  Nc6 {[%clk 0:02:56]} 3. d4 {[%clk 0:02:59]}  Bg4 {[%clk 0:02:56]} 4. Bg2 {[%clk 0:02:59]}  Nf6 {[%clk 0:02:56]} 5. O-O {[%clk 0:02:59]}  Bxf3 {[%clk 0:02:57]} 6. Bxf3 {[%clk 0:02:59]}  e5 {[%clk 0:02:57]} 7. dxe5 {[%clk 0:02:58]}  Nxe5 {[%clk 0:02:58]} 8. Bg2 {[%clk 0:02:59]}  c6 {[%clk 0:02:59]} 9. b3 {[%clk 0:02:56]}  Bd6 {[%clk 0:02:59]} 10. Bb2 {[%clk 0:02:57]}  Qe7 {[%clk 0:02:59]} 11. Nd2 {[%clk 0:02:56]}  O-O {[%clk 0:02:59]} 12. Rc1 {[%clk 0:02:54]}  Ba3 {[%clk 0:02:58]} 13. Bxa3 {[%clk 0:02:48]}  Qxa3 {[%clk 0:02:59]} 14. Ra1 {[%clk 0:02:48]}  Rfe8 {[%clk 0:03:00]} 15. Nf3 {[%clk 0:02:42]}  Nxf3+ {[%clk 0:02:56]} 16. Bxf3 {[%clk 0:02:43]}  Ne4 {[%clk 0:02:56]} 17. Qd4 {[%clk 0:02:40]}  Qc5 {[%clk 0:02:44]} 18. Qxc5 {[%clk 0:02:31]}  Nxc5 {[%clk 0:02:44]} 19. Rad1 {[%clk 0:02:31]}  Ne4 {[%clk 0:02:44]} 20. a4 {[%clk 0:02:22]}  a5 {[%clk 0:02:43]} 21. e3 {[%clk 0:02:21]}  f5 {[%clk 0:02:40]} 22. Rd4 {[%clk 0:02:21]}  g5 {[%clk 0:02:37]} 23. Rfd1 {[%clk 0:02:20]}  Re7 {[%clk 0:02:30]} 24. h3 {[%clk 0:02:12]}  Kf7 {[%clk 0:02:30]} 25. Kg2 {[%clk 0:02:11]}  Kg6 {[%clk 0:02:16]} 26. g4 {[%clk 0:02:10]}  Rae8 {[%clk 0:02:06]} 27. gxf5+ {[%clk 0:02:07]}  Kxf5 {[%clk 0:02:07]} 28. c4 {[%clk 0:02:00]}  dxc4 {[%clk 0:02:03]} 29. Rxc4 {[%clk 0:01:59]}  Nf6 {[%clk 0:01:57]} 30. Rc5+ {[%clk 0:01:53]}  Re5 {[%clk 0:01:57]} 31. Rc4 {[%clk 0:01:47]}  h5 {[%clk 0:01:55]} 32. Rd6 {[%clk 0:01:40]}  R8e6 {[%clk 0:01:49]} 33. Rd8 {[%clk 0:01:25]}  Re8 {[%clk 0:01:49]} 34. Rcd4 {[%clk 0:01:24]}  g4 {[%clk 0:01:36]} 35. hxg4+ {[%clk 0:01:15]}  hxg4 {[%clk 0:01:37]} 36. Be2 {[%clk 0:01:12]}  Kg5 {[%clk 0:01:36]} 37. R8d6 {[%clk 0:00:51]}  Rf8 {[%clk 0:01:31]} 38. Bxg4 {[%clk 0:00:43]}  Re4 {[%clk 0:00:58]} 39. Bf3 {[%clk 0:00:28]}  Rxd4 {[%clk 0:00:58]} 40. Rxd4 {[%clk 0:00:28]}  Kf5 {[%clk 0:00:58]} 41. Be2 {[%clk 0:00:27]}  Rg8+ {[%clk 0:00:57]} 42. Kf1 {[%clk 0:00:27]}  Ke5 {[%clk 0:00:58]} 43. Bd3 {[%clk 0:00:20]}  Rh8 {[%clk 0:00:51]} 44. f4+ {[%clk 0:00:20]}  Ke6 {[%clk 0:00:52]} 45. Kg2 {[%clk 0:00:19]}  Rg8+ {[%clk 0:00:50]} 46. Kf3 {[%clk 0:00:19]}  Rh8 {[%clk 0:00:50]} 47. Bc4+ {[%clk 0:00:19]}  Ke7 {[%clk 0:00:50]} 48. e4 {[%clk 0:00:18]}  Rh3+ {[%clk 0:00:49]} 49. Kg2 {[%clk 0:00:18]}  Re3 {[%clk 0:00:48]} 50. e5 {[%clk 0:00:18]}  Nh5 {[%clk 0:00:48]} 51. Kf2 {[%clk 0:00:17]}  Rc3 {[%clk 0:00:45]} 52. Be2 {[%clk 0:00:17]}  Ng7 {[%clk 0:00:43]} 53. Bg4 {[%clk 0:00:17]}  Ne6 {[%clk 0:00:40]} 54. Bxe6 {[%clk 0:00:15]}  Kxe6 {[%clk 0:00:41]} 55. Rd6+ {[%clk 0:00:15]}  Ke7 {[%clk 0:00:41]} 56. f5 {[%clk 0:00:15]}  Rc5 {[%clk 0:00:35]} 57. f6+ {[%clk 0:00:15]}  Ke8 {[%clk 0:00:34]} 58. Re6+ {[%clk 0:00:14]}  Kf8 {[%clk 0:00:30]} 59. Re7 {[%clk 0:00:14]}  b5 {[%clk 0:00:31]} 60. axb5 {[%clk 0:00:13]}  cxb5 {[%clk 0:00:31]} 61. Ke3 {[%clk 0:00:13]}  a4 {[%clk 0:00:32]} 62. bxa4 {[%clk 0:00:12]}  bxa4 {[%clk 0:00:33]} 63. Kd4 {[%clk 0:00:12]}  Ra5 {[%clk 0:00:31]} 64. e6 {[%clk 0:00:09]}  Ra6 {[%clk 0:00:31]} 65. Ke5 {[%clk 0:00:08]}  Ra5+ {[%clk 0:00:31]} 66. Kf4 {[%clk 0:00:08]}  Ra6 {[%clk 0:00:31]} 67. Kf5 {[%clk 0:00:09]}  Ra8 {[%clk 0:00:21]} 68. Kg6 {[%clk 0:00:08]}  a3 {[%clk 0:00:21]} 69. Rh7 {[%clk 0:00:08]}  Kg8 {[%clk 0:00:12]} 70. f7+ {[%clk 0:00:08]} 1-0


[Site "https://www.chess.com"]

[Event "Titled Tuesday Blitz December 7 2021"]
[White "Sokolin, Leonid"]
[Black "Diaz Camallonga, Carles"]
[WhiteFideId "2009161"]
[BlackFideId "22235256"]
[WhiteElo "2394"]
[BlackElo "2438"]
[Result "0-1"]
[Round "10"]
[TimeControl "180+1"]
[Date "2021.12.07"]
[WhiteClock "0:00:06"]
[BlackClock "0:00:18"]

1. e4 {[%clk 0:03:00]}  e6 {[%clk 0:02:58]} 2. d4 {[%clk 0:03:00]}  d5 {[%clk 0:02:59]} 3. Nc3 {[%clk 0:02:59]}  Bb4 {[%clk 0:02:59]} 4. exd5 {[%clk 0:02:58]}  exd5 {[%clk 0:02:59]} 5. Bd3 {[%clk 0:02:59]}  Nc6 {[%clk 0:02:59]} 6. Ne2 {[%clk 0:02:59]}  Nge7 {[%clk 0:02:59]} 7. O-O {[%clk 0:02:59]}  Bg4 {[%clk 0:02:59]} 8. Qe1 {[%clk 0:02:33]}  O-O {[%clk 0:02:49]} 9. a3 {[%clk 0:02:33]}  Ba5 {[%clk 0:02:46]} 10. b4 {[%clk 0:02:28]}  Bb6 {[%clk 0:02:46]} 11. Be3 {[%clk 0:02:25]}  Nf5 {[%clk 0:02:30]} 12. Bxf5 {[%clk 0:01:57]}  Bxf5 {[%clk 0:02:31]} 13. Qd2 {[%clk 0:01:56]}  Ne7 {[%clk 0:02:28]} 14. Na4 {[%clk 0:01:54]}  Nc8 {[%clk 0:02:28]} 15. Nc5 {[%clk 0:01:43]}  Nd6 {[%clk 0:02:27]} 16. Ng3 {[%clk 0:01:40]}  Bg6 {[%clk 0:02:26]} 17. Bf4 {[%clk 0:01:35]}  Qc8 {[%clk 0:02:18]} 18. Rfe1 {[%clk 0:01:34]}  a5 {[%clk 0:02:17]} 19. Qc3 {[%clk 0:01:08]}  Nb5 {[%clk 0:02:05]} 20. Qb2 {[%clk 0:01:04]}  axb4 {[%clk 0:02:00]} 21. axb4 {[%clk 0:01:01]}  Qg4 {[%clk 0:01:43]} 22. Be3 {[%clk 0:00:53]}  Nd6 {[%clk 0:01:33]} 23. h3 {[%clk 0:00:52]}  Qh4 {[%clk 0:01:32]} 24. Nd7 {[%clk 0:00:50]}  Nc4 {[%clk 0:01:25]} 25. Qc1 {[%clk 0:00:49]}  Nxe3 {[%clk 0:01:16]} 26. Nxf8 {[%clk 0:00:47]}  Rxf8 {[%clk 0:01:07]} 27. Qxe3 {[%clk 0:00:32]}  Bxd4 {[%clk 0:01:07]} 28. Qd2 {[%clk 0:00:29]}  Bxa1 {[%clk 0:01:04]} 29. Rxa1 {[%clk 0:00:29]}  Qc4 {[%clk 0:00:58]} 30. c3 {[%clk 0:00:30]}  Re8 {[%clk 0:00:58]} 31. Rd1 {[%clk 0:00:29]}  c6 {[%clk 0:00:57]} 32. Kh2 {[%clk 0:00:28]}  h6 {[%clk 0:00:57]} 33. Qd4 {[%clk 0:00:25]}  Qxd4 {[%clk 0:00:51]} 34. Rxd4 {[%clk 0:00:25]}  b5 {[%clk 0:00:47]} 35. f4 {[%clk 0:00:24]}  Re3 {[%clk 0:00:41]} 36. f5 {[%clk 0:00:23]}  Bh7 {[%clk 0:00:41]} 37. f6 {[%clk 0:00:18]}  Bg6 {[%clk 0:00:37]} 38. fxg7 {[%clk 0:00:17]}  Kxg7 {[%clk 0:00:35]} 39. h4 {[%clk 0:00:17]}  Rxc3 {[%clk 0:00:34]} 40. h5 {[%clk 0:00:17]}  Bh7 {[%clk 0:00:33]} 41. Rg4+ {[%clk 0:00:17]}  Kf6 {[%clk 0:00:33]} 42. Rf4+ {[%clk 0:00:18]}  Ke6 {[%clk 0:00:33]} 43. Rg4 {[%clk 0:00:18]}  Rc4 {[%clk 0:00:31]} 44. Rg7 {[%clk 0:00:17]}  Bd3 {[%clk 0:00:29]} 45. Kg1 {[%clk 0:00:15]}  Rxb4 {[%clk 0:00:29]} 46. Kf2 {[%clk 0:00:16]}  d4 {[%clk 0:00:26]} 47. Rg8 {[%clk 0:00:14]}  Rb2+ {[%clk 0:00:24]} 48. Kf3 {[%clk 0:00:15]}  Bc4 {[%clk 0:00:22]} 49. Rh8 {[%clk 0:00:14]}  Bd5+ {[%clk 0:00:23]} 50. Kf4 {[%clk 0:00:14]}  Rf2+ {[%clk 0:00:22]} 51. Kg4 {[%clk 0:00:14]}  f5+ {[%clk 0:00:20]} 52. Kh4 {[%clk 0:00:12]}  Rxg2 {[%clk 0:00:19]} 53. Rxh6+ {[%clk 0:00:12]}  Ke5 {[%clk 0:00:19]} 54. Rg6 {[%clk 0:00:10]}  f4 {[%clk 0:00:19]} 55. Nf1 {[%clk 0:00:07]}  Rxg6 {[%clk 0:00:18]} 56. hxg6 {[%clk 0:00:07]}  b4 {[%clk 0:00:18]} 57. Kg5 {[%clk 0:00:06]}  b3 {[%clk 0:00:18]} 58. Nd2 {[%clk 0:00:07]}  b2 {[%clk 0:00:18]} 59. g7 {[%clk 0:00:06]}  d3 {[%clk 0:00:19]} 60. Kg6 {[%clk 0:00:06]}  Kd4 {[%clk 0:00:18]} 0-1


[Site "https://www.chess.com"]

[Event "Titled Tuesday Blitz December 7 2021"]
[White "Sviridov, Valery"]
[Black "Ivanchuk, Vasyl"]
[WhiteFideId "4120680"]
[BlackFideId "14100010"]
[WhiteElo "2454"]
[BlackElo "2710"]
[Result "1/2-1/2"]
[Round "10"]
[TimeControl "180+1"]
[Date "2021.12.07"]
[WhiteClock "0:00:18"]
[BlackClock "0:00:23"]

1. Nf3 {[%clk 0:03:00]}  Nf6 {[%clk 0:02:59]} 2. g3 {[%clk 0:03:01]}  g6 {[%clk 0:02:57]} 3. Bg2 {[%clk 0:03:01]}  Bg7 {[%clk 0:02:58]} 4. O-O {[%clk 0:03:01]}  O-O {[%clk 0:02:58]} 5. c4 {[%clk 0:03:01]}  c5 {[%clk 0:02:54]} 6. Nc3 {[%clk 0:02:59]}  Nc6 {[%clk 0:02:53]} 7. d4 {[%clk 0:02:59]}  d6 {[%clk 0:02:53]} 8. dxc5 {[%clk 0:02:59]}  dxc5 {[%clk 0:02:53]} 9. Bf4 {[%clk 0:02:59]}  Nd4 {[%clk 0:02:50]} 10. Be5 {[%clk 0:02:40]}  Nc6 {[%clk 0:02:49]} 11. Bf4 {[%clk 0:02:39]}  Nd4 {[%clk 0:02:48]} 12. Ne5 {[%clk 0:02:25]}  Nh5 {[%clk 0:02:45]} 13. e3 {[%clk 0:02:23]}  Ne6 {[%clk 0:02:42]} 14. Nd5 {[%clk 0:02:19]}  Nhxf4 {[%clk 0:02:10]} 15. exf4 {[%clk 0:02:20]}  g5 {[%clk 0:02:10]} 16. Qh5 {[%clk 0:02:03]}  gxf4 {[%clk 0:02:05]} 17. Rad1 {[%clk 0:02:03]}  Nd4 {[%clk 0:02:01]} 18. Nxf4 {[%clk 0:02:03]}  Bf5 {[%clk 0:01:52]} 19. Ned3 {[%clk 0:01:47]}  Qd6 {[%clk 0:01:43]} 20. Rfe1 {[%clk 0:01:42]}  Rab8 {[%clk 0:01:31]} 21. g4 {[%clk 0:01:34]}  Bxd3 {[%clk 0:01:30]} 22. Nxd3 {[%clk 0:01:35]}  b6 {[%clk 0:01:30]} 23. b3 {[%clk 0:01:33]}  Rbd8 {[%clk 0:01:24]} 24. Be4 {[%clk 0:01:32]}  h6 {[%clk 0:01:24]} 25. Kg2 {[%clk 0:01:30]}  Rfe8 {[%clk 0:01:17]} 26. h4 {[%clk 0:01:30]}  Kf8 {[%clk 0:01:12]} 27. g5 {[%clk 0:01:28]}  hxg5 {[%clk 0:01:12]} 28. hxg5 {[%clk 0:01:28]}  e6 {[%clk 0:01:10]} 29. Qg4 {[%clk 0:01:13]}  Ke7 {[%clk 0:01:07]} 30. Rh1 {[%clk 0:01:05]}  Rh8 {[%clk 0:01:07]} 31. Qf4 {[%clk 0:01:00]}  Qxf4 {[%clk 0:00:59]} 32. Nxf4 {[%clk 0:01:01]}  Be5 {[%clk 0:01:00]} 33. Nd3 {[%clk 0:01:00]}  Bd6 {[%clk 0:01:00]} 34. f4 {[%clk 0:00:59]}  f5 {[%clk 0:00:54]} 35. gxf6+ {[%clk 0:00:59]}  Kxf6 {[%clk 0:00:54]} 36. Kf2 {[%clk 0:00:57]}  Rdg8 {[%clk 0:00:53]} 37. Rdg1 {[%clk 0:00:56]}  Bc7 {[%clk 0:00:48]} 38. Rxg8 {[%clk 0:00:55]}  Rxg8 {[%clk 0:00:47]} 39. Rh6+ {[%clk 0:00:55]}  Kf7 {[%clk 0:00:45]} 40. Rh7+ {[%clk 0:00:48]}  Rg7 {[%clk 0:00:45]} 41. Rh8 {[%clk 0:00:49]}  Rg8 {[%clk 0:00:42]} 42. Rh7+ {[%clk 0:00:45]}  Rg7 {[%clk 0:00:42]} 43. Rh6 {[%clk 0:00:42]}  Rg4 {[%clk 0:00:30]} 44. Bf3 {[%clk 0:00:37]}  Rg7 {[%clk 0:00:28]} 45. Rh1 {[%clk 0:00:33]}  Ke7 {[%clk 0:00:27]} 46. Rh8 {[%clk 0:00:30]}  Bd6 {[%clk 0:00:26]} 47. Be4 {[%clk 0:00:26]}  Kf6 {[%clk 0:00:26]} 48. Rd8 {[%clk 0:00:25]}  Bc7 {[%clk 0:00:25]} 49. Ra8 {[%clk 0:00:25]}  Bd6 {[%clk 0:00:25]} 50. Rh8 {[%clk 0:00:20]}  Bc7 {[%clk 0:00:24]} 51. Rh6+ {[%clk 0:00:19]}  Ke7 {[%clk 0:00:23]} 52. Rh5 {[%clk 0:00:17]}  Bd6 {[%clk 0:00:23]} 53. Rh6 {[%clk 0:00:17]}  Bc7 {[%clk 0:00:23]} 54. Rh5 {[%clk 0:00:17]}  Bd6 {[%clk 0:00:23]} 55. Rh6 {[%clk 0:00:18]}  Bc7 {[%clk 0:00:23]} 1/2-1/2


[Site "https://www.chess.com"]